Cogmind - Beta 12 X4 @@@ ROGUE MODE // 2022.10.26 @ 00:23:21 Player: cptwinky Result: Destroyed by G-47 Trooper with Particle Gun Performance ------------- Evolutions (2) 1000 Regions Visited (11) 2200 Robots Destroyed (234) 1170 Value Destroyed (7421) 7421 Prototype IDs (12) 240 Alien Tech Used (0) 0 Bonus (1934) 1934 TOTAL SCORE: 13965 Bonus ------- High Alert Combat Kills 1420 Follower Combat Kills 41 Entered Garrisons 600 Friendly Fire -127 Cogmind --------- Core Integrity 0/550 Matter 284/300 Energy 262/280 System Corruption 0% Temperature Cool (59) Movement Treading (243) Ox1 Location -8/Materials Parts ------- > --- POWER (1) -------- Heavy Ion Engine > --- PROPULSION (3) --- Improved Treads Improved Treads Armored Treads > --- UTILITY (5) ------ Cooling System Huge Storage Unit Advanced Targeting Computer Hardened Heavy Armor Plating > --- WEAPON (2) ------- Gatling Laser Gatling Laser > --- INVENTORY (25) --- Heavy Ion Engine Advanced Treads Improved Heat Sink Improved Signal Interpreter Seismic Detector Hardened Heavy Armor Plating Medium Reactive Plating System Restoration Module Long-range Tractor Beam Trap Extractor (4/4 Hellfire) Beam Rifle Advanced Beam Rifle Advanced Beam Rifle Advanced Beam Rifle Advanced Beam Rifle Advanced Beam Rifle Gatling Laser Bore Cannon Rocket Launcher Mini Grenade Launcher Mini Grenade Launcher Datajack Impact Mace Peak State ------------ > --- POWER ------------ Heavy Ion Engine > --- PROPULSION ------- Light Treads Improved Treads Armored Treads > --- UTILITY ---------- Huge Storage Unit Advanced Targeting Computer Hardened Heavy Armor Plating System Restoration Module > --- WEAPON ----------- Gatling Laser Gatling Laser > --- INVENTORY -------- Heavy Ion Engine Improved Treads Advanced Treads Improved Heat Sink Cooling System Improved Signal Interpreter Seismic Detector Hardened Heavy Armor Plating Medium Reactive Plating Long-range Tractor Beam Trap Extractor Beam Rifle Advanced Beam Rifle Advanced Beam Rifle Advanced Beam Rifle Advanced Beam Rifle Advanced Beam Rifle Gatling Laser Bore Cannon Rocket Launcher Mini Grenade Launcher Mini Grenade Launcher Datajack Impact Mace [Rating: 40] Favorites ----------- Power Heavy Ion Engine Engine Heavy Ion Engine Propulsion Light Treads Treads Light Treads Leg Aluminum Leg Wheel Wheel Utility Improved Targeting Computer Device Cooling System Storage Huge Storage Unit Processor Improved Targeting Computer Protection Light Armor Plating Weapon Improved Light Cannon Energy Gun Gatling Laser Energy Cannon Advanced Beam Cannon Ballistic Gun Assault Rifle Ballistic Cannon Improved Light Cannon Launcher Mini Grenade Launcher Impact Weapon Impact Mace Build | -11 -10 -10 -9 -9 -8 -8 -8 -8 -8 -8 -8 ------- Run | Scr Mat Min Mat Min Mat Gar Mat Gar Mat Gar Mat Slots Evolved 4 | . . . 2 . 2 . . . . . . Power . | . . . . . . . . . . . . Propulsion 1 | . . . 1 . . . . . . . . Utility 3 | . . . 1 . 2 . . . . . . Weapon . | . . . . . . . . . . . . Parts Attached 144 | 2 14 . 18 4 3 20 48 14 12 6 3 Power 7 | . 2 . 1 . . 1 2 . 1 . . Engine 7 | . 2 . 1 . . 1 2 . 1 . . Core . | . . . . . . . . . . . . Reactor . | . . . . . . . . . . . . Propulsion 37 | 2 4 . 6 . . 3 13 2 6 . 1 Treads 36 | 2 3 . 6 . . 3 13 2 6 . 1 Leg . | . . . . . . . . . . . . Wheel 1 | . 1 . . . . . . . . . . Hover . | . . . . . . . . . . . . Flight . | . . . . . . . . . . . . Utility 40 | . 3 . 4 . 2 8 16 4 3 . . Device 9 | . . . . . . 4 3 . 2 . . Storage 4 | . 1 . 1 . . . 2 . . . . Processor 7 | . 2 . . . 1 1 2 1 . . . Hackware . | . . . . . . . . . . . . Protection 20 | . . . 3 . 1 3 9 3 1 . . Artifact . | . . . . . . . . . . . . Weapon 60 | . 5 . 7 4 1 8 17 8 2 6 2 Energy Gun 18 | . 3 . 3 . 1 1 . 5 1 3 1 Energy Cannon 5 | . . . . . . . 5 . . . . Ballistic Gun 3 | . 2 . 1 . . . . . . . . Ballistic Cannon 14 | . . . 2 2 . 5 5 . . . . Launcher 14 | . . . 1 2 . 2 4 2 . 3 . Special Weapon . | . . . . . . . . . . . . Impact Weapon 6 | . . . . . . . 3 1 1 . 1 Slashing Weapon . | . . . . . . . . . . . . Piercing Weapon . | . . . . . . . . . . . . Special Melee Weapon . | . . . . . . . . . . . . Unidentified Prototypes 2 | . . . 1 . . . 1 . . . . Parts Lost 28 | . . . 7 . . 5 15 . . . 1 Power 2 | . . . . . . 1 1 . . . . Propulsion 11 | . . . 3 . . 2 5 . . . 1 Utility 10 | . . . 2 . . 2 6 . . . . Weapon 5 | . . . 2 . . . 3 . . . . Highest Loss Streak 5 | . . . 2 . . 2 5 . . . 1 To Critical Strikes . | . . . . . . . . . . . . Average Slot Usage (%) 96 | . 99 100 99 100 100 98 98 97 90 90 90 Engine 10 | . 13 14 11 11 9 8 8 9 9 9 9 Treads 28 | . 27 28 32 33 27 27 27 26 27 27 27 Device 5 | . . . . . . 7 10 9 9 9 9 Storage 10 | . 14 14 11 11 9 9 9 9 9 9 9 Processor 12 | . 13 14 11 11 18 11 15 15 9 9 9 Protection 8 | . . . 11 11 18 16 9 8 9 9 9 Energy Gun 8 | . 14 14 6 . . . . 11 17 17 17 Energy Cannon 2 | . . . . . . . 9 4 . . . Ballistic Gun 3 | . 13 14 6 . . . . . . . . Ballistic Cannon 6 | . . . 8 22 18 16 8 . . . . Naked Turns . | . . . . . . . . . . . . Heaviest Build 118 | 14 31 31 59 59 62 63 109 118 118 118 118 Greatest Support 66 | 40 40 40 60 60 60 60 66 66 66 63 63 Greatest Overweight (x) 2 | . 2 . . . 1 1 1 1 1 1 1 Average Overweight (x) . | . . . . . 1 . . 1 1 1 1 Largest Inventory Capacity 25 | 8 15 15 20 20 20 20 25 25 25 25 25 Average Capacity 20 | 8 14 15 17 20 20 20 22 25 25 25 25 Most Carried 25 | 6 15 15 17 19 18 20 25 25 25 25 25 Average Carried 19 | 6 13 15 14 17 17 18 21 24 24 25 24 Final Capacity 25 | 8 15 15 20 20 20 20 25 25 25 25 25 Final Carried 25 | 6 15 15 17 19 17 20 25 25 25 25 24 Class Distribution -------------------- 80% | Mutant 19% | Scavenger-Mutant Dominant Class ---------------- Mutant | -10/Materials Mutant | -10/Mines Mutant | -9/Materials Mutant | -9/Mines Scavenger-Mutant | -8/Materials Scavenger-Mutant | -8/Garrison Mutant | -8/Materials Mutant | -8/Garrison Mutant | -8/Materials Mutant | -8/Garrison Mutant | -8/Materials Resources | -11 -10 -10 -9 -9 -8 -8 -8 -8 -8 -8 -8 ----------- Run | Scr Mat Min Mat Min Mat Gar Mat Gar Mat Gar Mat Matter Collected 3598 | 206 292 46 634 77 . 603 1222 236 138 135 9 Remotely 149 | . . . . . . . 149 . . . . Salvage Created 6937 | . 509 140 1509 94 . 704 1597 736 951 427 270 Parts 405 | . 29 10 98 11 . 46 81 37 48 29 16 Haulers Intercepted 12 | . 2 . 4 . . . 4 . 2 . . Recyclers Shooed 6 | . 1 . 5 . . . . . . . . Parts Field Recycled . | . . . . . . . . . . . . Retrieved Matter . | . . . . . . . . . . . . Parts Self-Destructed . | . . . . . . . . . . . . Prevented . | . . . . . . . . . . . . Kills | -11 -10 -10 -9 -9 -8 -8 -8 -8 -8 -8 -8 ------- Run | Scr Mat Min Mat Min Mat Gar Mat Gar Mat Gar Mat Combat Hostiles Destroyed 187 | . 11 6 33 7 . 30 40 21 17 14 8 Melee 2 | . . . . . . 1 1 . . . . Guns 78 | . 11 6 21 . . . . 8 17 7 8 Cannons 48 | . . . 7 . . 13 24 4 . . . AOE 58 | . . . 5 7 . 16 14 9 . 7 . Classes Destroyed 16 | . 5 . 6 1 . 1 3 . . . . Worker 8 | . 3 . . . . . 3 . 2 . . Builder 3 | . . . 1 . . . 2 . . . . Tunneler 2 | . . . . 1 . . 1 . . . . Hauler 12 | . 2 . 4 . . . 4 . 2 . . Recycler 3 | . . . 1 1 . . 1 . . . . Mechanic 2 | . . . 1 . . . 1 . . . . Operator 3 | . . . 2 . . . . . 1 . . Watcher 14 | . 2 . 3 . . . 4 . 5 . . Swarmer 48 | . 3 3 4 7 . 11 6 4 3 4 3 Grunt 92 | . 8 3 18 . . 14 23 9 6 6 5 Brawler 3 | . . . . . . . 1 1 . 1 . Duelist 4 | . . . 1 . . . 1 1 . 1 . Sentry 32 | . . . 10 . . 3 7 5 6 1 . Hunter 4 | . . . . . . . 1 . 2 1 . Programmer 4 | . . . . . . 3 . 1 . . . Heavy 1 | . . . . . . . 1 . . . . Best Kill Streak 17 | . 4 3 7 4 . 17 10 9 5 7 6 Combat Bots Only 17 | . 3 3 6 4 . 17 9 9 5 7 6 Max Kills in Single Turn 5 | . 1 1 5 4 . 5 3 5 3 3 2 Gunslinging . | . . . . . . . . . . . . Exploded 5 | . . . 4 4 . 5 2 5 . 3 . Melee 1 | . . . . . . 1 1 . . . . Uniques/NPCs Destroyed . | . . . . . . . . . . . . Combat | -11 -10 -10 -9 -9 -8 -8 -8 -8 -8 -8 -8 -------- Run | Scr Mat Min Mat Min Mat Gar Mat Gar Mat Gar Mat Damage Taken 6911 | . 264 113 1141 55 . 799 2482 832 550 449 226 Core 766 | . 26 15 154 8 . 95 245 106 47 . 70 Absorbed by Shields 275 | . . . . . . 275 . . . . . Redirected to Shielding 106 | . . . . . . . 106 . . . . Regen/Repaired (Parts) 361 | . 89 . 111 . . . . . 161 . . Core Remaining (%) 80 | 100 . 83 . 59 . . . . . . . Volleys Fired 491 | . 49 10 109 4 1 65 141 32 47 20 13 Largest 2 | . 2 2 2 2 1 2 2 2 2 2 2 Hottest 160 | . 88 88 112 78 56 78 136 160 160 160 160 Shots Fired 909 | . 98 20 212 6 1 99 259 63 94 31 26 Gun 471 | . 98 20 159 . 1 14 . 35 94 24 26 Cannon 390 | . . . 48 4 . 75 239 24 . . . Launcher 48 | . . . 5 2 . 10 20 4 . 7 . Special . | . . . . . . . . . . . . Kinetic 383 | . 49 10 119 4 . 75 126 . . . . Thermal 478 | . 49 10 88 . 1 14 113 59 94 24 26 Explosive 48 | . . . 5 2 . 10 20 4 . 7 . Electromagnetic . | . . . . . . . . . . . . Robot Hit Streak 27 | . 19 6 27 3 . 9 14 18 20 13 9 Robot Miss Streak 9 | . 3 7 5 2 . 3 9 2 3 2 4 Penetration Max . | . . . . . . . . . . . . Secondary Targets 7 | . . 2 2 . . . . 1 . 2 . Max Gunslinging Chain 1 | . . 1 1 . . . . 1 . 1 . Shots Hit Robots 675 | . 68 18 158 2 . 63 179 49 89 26 23 Core Hits 461 | . 54 20 79 8 . 48 96 40 65 27 24 Critical Kills . | . . . . . . . . . . . . Critical Parts Destroyed 2 | . 1 . 1 . . . . . . . . Critical Strikes 13 | . 3 . 5 . . 1 4 . . . . Burn 5 | . 2 . 3 . . . . . . . . Destroy 2 | . 1 . 1 . . . . . . . . Blast 6 | . . . 1 . . 1 4 . . . . Melee Attacks 20 | . . . . . . . 8 6 5 . 1 Impact 20 | . . . . . . . 8 6 5 . 1 Slashing . | . . . . . . . . . . . . Piercing . | . . . . . . . . . . . . Sneak Attacks 2 | . . . . . . . 2 . . . . Combat Hostiles . | . . . . . . . . . . . . Follow-up Attacks . | . . . . . . . . . . . . Damage Inflicted 19012 | . 1068 279 3151 387 . 2605 5946 1723 2196 1123 534 Guns 7029 | . 1013 248 1769 . . 174 . 682 2138 471 534 Cannons 6203 | . . . 805 43 . 1084 3874 397 . . . Explosions 5220 | . . . 519 327 . 1324 1754 644 . 652 . Melee 263 | . . . . . . . 263 . . . . Ramming 297 | . 55 31 58 17 . 23 55 . 58 . . Kinetic 5401 | . 462 124 1481 43 . 1084 2207 . . . . Thermal 7921 | . 551 124 1093 . . 174 1757 1079 2138 471 534 Explosive 5130 | . . . 519 327 . 1324 1664 644 . 652 . Electromagnetic . | . . . . . . . . . . . . Impact 263 | . . . . . . . 263 . . . . Slashing . | . . . . . . . . . . . . Piercing . | . . . . . . . . . . . . Highest Corruption 3 | . . . . . . 3 3 3 3 . . Average Corruption 2 | . . . . . . 2 3 3 2 . . Corruption Purged 3 | . . . . . . . . . 3 . . Corruption Blocked . | . . . . . . . . . . . . Effects 93 | . . . . . . 9 49 22 13 . . Message Errors 20 | . . . . . . 2 11 6 1 . . Matter Fused 17 | . . . . . . 1 10 3 3 . . Heat Flow Errors 14 | . . . . . . 2 7 4 1 . . Energy Discharges 19 | . . . . . . 2 9 4 4 . . Parts Rejected 2 | . . . . . . . 1 . 1 . . Data Loss (minor) 8 | . . . . . . 2 4 . 2 . . Data Loss (major) 4 | . . . . . . . 2 1 1 . . Misfires 6 | . . . . . . . 2 4 . . . Alerts 1 | . . . . . . . 1 . . . . Weapon Failures 2 | . . . . . . . 2 . . . . Overload Shots . | . . . . . . . . . . . . Overflow Damage 429 | . . . 26 20 . 110 256 17 . . . Projectiles 140 | . . . 26 . . 75 22 17 . . . Explosions 153 | . . . . 20 . 35 98 . . . . Melee 136 | . . . . . . . 136 . . . . Knockbacks 32 | . . . 3 . . 7 22 . . . . Impact 2 | . . . 2 . . . . . . . . Kinetic 27 | . . . 1 . . 6 20 . . . . Secondary 3 | . . . . . . 1 2 . . . . Self-Inflicted Damage 317 | . . . 30 . . 20 150 86 . 31 . Shots 12 | . . . 1 . . 1 4 4 . 2 . Rammed 40 | . 13 5 8 1 . 2 5 . 6 . . Targets Rammed 44 | . 13 5 10 1 . 3 5 . 7 . . Kicked . | . . . . . . . . . . . . Crushed 4 | . . . 2 . . 1 . . 1 . . Highest Temperature 398 | . 165 121 348 24 12 187 231 398 279 257 268 Average Temperature 67 | . 39 53 74 12 9 41 47 84 75 80 101 Received Heat Transfer 2681 | . 90 30 504 . . 275 999 297 225 108 153 Effects 3 | . . . 2 . . . . 1 . . . Matter Decay 2 | . . . 1 . . . . 1 . . . Short Circuit 1 | . . . 1 . . . . . . . . Siege Activations . | . . . . . . . . . . . . Robots Corrupted . | . . . . . . . . . . . . Combat Hostiles . | . . . . . . . . . . . . Parts Fried . | . . . . . . . . . . . . Impact Corruptions 4 | . . . . . . . 4 . . . . Robots Melted . | . . . . . . . . . . . . Combat Hostiles . | . . . . . . . . . . . . Parts Melted 22 | . 1 . 7 . . . 6 1 5 2 . Heat Transferred 16100 | . 1251 150 2572 . . 444 2862 2046 4625 1000 1150 Parts Sabotaged . | . . . . . . . . . . . . Parts Stolen . | . . . . . . . . . . . . Parts Stripped . | . . . . . . . . . . . . Power Chain Reactions . | . . . . . . . . . . . . Missiles Intercepted . | . . . . . . . . . . . . Alert | -11 -10 -10 -9 -9 -8 -8 -8 -8 -8 -8 -8 ------- Run | Scr Mat Min Mat Min Mat Gar Mat Gar Mat Gar Mat Peak Influence 1156 | . 283 153 592 462 51 856 966 1156 607 860 640 Initial 563 | . . 103 . 230 48 33 417 478 563 357 419 Average 452 | . 89 69 339 342 48 446 678 819 469 617 471 Maximum Alert Level 4 | . 1 . 2 2 . 3 3 4 2 3 2 Low Security (%) 21 | 100 75 100 24 5 100 16 . . . . . Level 1 14 | . 24 . 33 55 . 11 . . 18 6 . Level 2 44 | . . . 42 39 . 61 60 35 81 42 100 Level 3 18 | . . . . . . 10 38 58 . 50 . Level 4 . | . . . . . . . . 5 . . . Level 5 . | . . . . . . . . . . . . High Security . | . . . . . . . . . . . . Max Security . | . . . . . . . . . . . . Squads Dispatched 23 | . 3 . 5 . 3 . 9 . 2 . 1 Investigation 8 | . 1 . 2 . 2 . 3 . . . . Extermination . | . . . . . . . . . . . . Reinforcement 10 | . 2 . 3 . . . 3 . 1 . 1 Assault 1 | . . . . . . . 1 . . . . Garrison 4 | . . . . . 1 . 2 . 1 . . Intercept . | . . . . . . . . . . . . Searches Triggered . | . . . . . . . . . . . . Construction Impeded 1 | . . . . . . . 1 . . . . Haulers Reinforced . | . . . . . . . . . . . . Active Scanning Responses . | . . . . . . . . . . . . Cargo Convoy Interrupts . | . . . . . . . . . . . . Stealth | -11 -10 -10 -9 -9 -8 -8 -8 -8 -8 -8 -8 --------- Run | Scr Mat Min Mat Min Mat Gar Mat Gar Mat Gar Mat Distress Signals 10 | . 1 . 1 . . . 4 . 3 . 1 Communications Jammed . | . . . . . . . . . . . . Distress Signals . | . . . . . . . . . . . . Times Spotted 249 | . 20 6 44 10 . 30 62 21 30 14 12 Peak Tracking Total 8 | . 3 3 6 4 . 8 7 6 5 4 5 Tactical Retreats 16 | . 1 . 3 2 . 2 4 1 1 1 1 Traps | -11 -10 -10 -9 -9 -8 -8 -8 -8 -8 -8 -8 ------- Run | Scr Mat Min Mat Min Mat Gar Mat Gar Mat Gar Mat Traps Triggered 14 | . 2 . 2 . . 7 1 . . 2 . Indirectly . | . . . . . . . . . . . . Trap Hack Attempts . | . . . . . . . . . . . . Triggered . | . . . . . . . . . . . . Disarmed . | . . . . . . . . . . . . Reprogrammed . | . . . . . . . . . . . . Reused 2 | . . . . . . . 2 . . . . Traps Extracted . | . . . . . . . . . . . . Installed 2 | . . . . . . . 2 . . . . Triggered 2 | . . . . . . . 2 . . . . Most Traps Carried 6 | . . . . . . 6 6 4 4 4 4 Machines | -11 -10 -10 -9 -9 -8 -8 -8 -8 -8 -8 -8 ---------- Run | Scr Mat Min Mat Min Mat Gar Mat Gar Mat Gar Mat Machines Disabled 11 | . . . 2 1 . 4 3 1 . . . Max in Single Turn 2 | . . . 1 1 . 1 2 1 . . . Garrison Relay 1 | . . . . . . . . 1 . . . Machines Sabotaged . | . . . . . . . . . . . . Overloaded Fab Kills . | . . . . . . . . . . . . Hacking | -11 -10 -10 -9 -9 -8 -8 -8 -8 -8 -8 -8 --------- Run | Scr Mat Min Mat Min Mat Gar Mat Gar Mat Gar Mat Machines Accessed 46 | . 9 . 10 . 2 3 12 . 7 2 1 Terminals 36 | . 7 . 8 . 1 3 9 . 5 2 1 Fabricators . | . . . . . . . . . . . . Repair Stations 5 | . 1 . 1 . . . 2 . 1 . . Recycling Units 1 | . 1 . . . . . . . . . . Scanalyzers 1 | . . . 1 . . . . . . . . Garrison Access 3 | . . . . . 1 . 1 . 1 . . Total Hacks 127 | . 31 . 31 . 5 3 32 . 19 3 3 Successful 61 | . 19 . 13 . 3 2 14 . 6 2 2 Failed 64 | . 11 . 18 . 2 1 17 . 13 1 1 Catastrophic 9 | . . . 2 . 1 1 3 . 2 . . Database Lockouts 2 | . 1 . . . . . 1 . . . . Manual 68 | . 17 . 15 . 4 . 21 . 9 . 2 Terminals 97 | . 24 . 24 . 2 3 24 . 14 3 3 Fabricators . | . . . . . . . . . . . . Repair Stations 16 | . 5 . 5 . . . 3 . 3 . . Recycling Units 2 | . 2 . . . . . . . . . . Scanalyzers 2 | . . . 2 . . . . . . . . Garrison Access 10 | . . . . . 3 . 5 . 2 . . Terminal Hacks 37 | . 12 . 7 . . 2 10 . 3 2 1 Part Schematic 1 | . 1 . . . . . . . . . . Robot Analysis 6 | . 3 . 1 . . . 2 . . . . Prototype ID Bank 6 | . 1 . 4 . . . 1 . . . . Open Door 1 | . . . . . . 1 . . . . . Branch Access Points 1 | . . . 1 . . . . . . . . Emergency Access Points 2 | . . . . . . 1 . . . 1 . Unreport Threat 4 | . . . . . . . 3 . 1 . . Locate Traps 2 | . 2 . . . . . . . . . . Recall Reinforcements 1 | . 1 . . . . . . . . . . Registered Components 1 | . 1 . . . . . . . . . . Zone Layout 11 | . 3 . 1 . . . 4 . 2 . 1 Security Stations 1 | . . . . . . . . . . 1 . Fabricator Hacks . | . . . . . . . . . . . . Repair Station Hacks 10 | . 4 . 3 . . . 1 . 2 . . Scan Component 6 | . 2 . 2 . . . 1 . 1 . . Repair 4 | . 2 . 1 . . . . . 1 . . Recycling Unit Hacks 1 | . 1 . . . . . . . . . . Retrieve Components 1 | . 1 . . . . . . . . . . Scanalyzer 2 | . . . 2 . . . . . . . . Insert Component 1 | . . . 1 . . . . . . . . Analyze 1 | . . . 1 . . . . . . . . Garrison Access Hacks 3 | . . . . . 1 . 1 . 1 . . Unlock Access 3 | . . . . . 1 . 1 . 1 . . Unauthorized Hacks 8 | . 2 . 1 . 2 . 2 . . . 1 Terminals 5 | . 1 . 1 . 1 . 1 . . . 1 Botnet 5 | . 1 . 1 . 1 . 1 . . . 1 Fabricators . | . . . . . . . . . . . . Repair Stations . | . . . . . . . . . . . . Recycling Units 1 | . 1 . . . . . . . . . . Tunnel 1 | . 1 . . . . . . . . . . Scanalyzers . | . . . . . . . . . . . . Garrison Access 2 | . . . . . 1 . 1 . . . . Reprogram 2 | . . . . . 1 . 1 . . . . Data Cores Recovered 1 | . . . . . . . . . 1 . . Used . | . . . . . . . . . . . . Hacking Detections 40 | . 8 . 9 . 2 1 11 . 7 1 1 Full Trace Events 3 | . . . 1 . 1 . 1 . . . . Feedback Events . | . . . . . . . . . . . . Feedback Blocked . | . . . . . . . . . . . . Robot Schematics Acquired . | . . . . . . . . . . . . Robots Built . | . . . . . . . . . . . . Authchips . | . . . . . . . . . . . . Time . | . . . . . . . . . . . . Total Robot Build Rating . | . . . . . . . . . . . . Part Schematics Acquired 2 | . 1 . 1 . . . . . . . . Parts Built . | . . . . . . . . . . . . Authchips . | . . . . . . . . . . . . Time . | . . . . . . . . . . . . Total Part Build Rating . | . . . . . . . . . . . . Parts Repaired 4 | . 2 . 1 . . . . . 1 . . Time 122 | . 52 . 26 . . . . . 44 . . Parts Recycled . | . . . . . . . . . . . . Recycled Matter . | . . . . . . . . . . . . Retrieved Matter . | . . . . . . . . . . . . Retrieved Components 3 | . 3 . . . . . . . . . . Parts Scanalyzed 1 | . . . 1 . . . . . . . . Part Schematics Acquired 1 | . . . 1 . . . . . . . . Parts Damaged . | . . . . . . . . . . . . Bothacking | -11 -10 -10 -9 -9 -8 -8 -8 -8 -8 -8 -8 ------------ Run | Scr Mat Min Mat Min Mat Gar Mat Gar Mat Gar Mat Used RIF Installer . | . . . . . . . . . . . . Robots Hacked . | . . . . . . . . . . . . Non-combat . | . . . . . . . . . . . . Combat . | . . . . . . . . . . . . Robot Hacks Applied . | . . . . . . . . . . . . Relay Couplers Released 7 | . . . . . . . . 7 . . . Machine Destruction 3 | . . . . . . . . 3 . . . Programmers 4 | . . . . . . . . 4 . . . Fabnet Peak Effective % . | . . . . . . . . . . . . Robots Rewired . | . . . . . . . . . . . . Allies Hacked . | . . . . . . . . . . . . Hacks Repelled . | . . . . . . . . . . . . Allies | -11 -10 -10 -9 -9 -8 -8 -8 -8 -8 -8 -8 -------- Run | Scr Mat Min Mat Min Mat Gar Mat Gar Mat Gar Mat Total Allies 8 | . . 1 . 3 1 1 2 . . . . Largest Group 4 | . . 1 1 3 4 4 2 2 . . . Highest-Rated Group 54 | . . 31 31 40 54 54 39 32 . . . Highest-Rated Ally 39 | . . 31 31 16 16 39 39 16 . . . Total Orders . | . . . . . . . . . . . . Ally Attacks 34 | . . . . 16 . 6 3 9 . . . Total Damage 457 | . . . . 186 . 94 86 91 . . . Kills 4 | . . . . 3 . 1 . . . . . Allies Corrupted . | . . . . . . . . . . . . Allies Melted . | . . . . . . . . . . . . Intel | -11 -10 -10 -9 -9 -8 -8 -8 -8 -8 -8 -8 ------- Run | Scr Mat Min Mat Min Mat Gar Mat Gar Mat Gar Mat Robot Analysis Total 6 | . 3 . 1 . . . 2 . . . . Derelict Logs Recovered 2 | . . 1 . 1 . . . . . . . Drone Launches . | . . . . . . . . . . . . Drone Recoveries . | . . . . . . . . . . . . Exploration | -11 -10 -10 -9 -9 -8 -8 -8 -8 -8 -8 -8 ------------- Run | Scr Mat Min Mat Min Mat Gar Mat Gar Mat Gar Mat Turns Passed 13638 | 10 1439 1060 1964 844 68 1342 2601 1275 1522 1218 295 Spaces Moved 5598 | 5 706 615 917 516 26 456 953 446 487 386 85 Core . | . . . . . . . . . . . . Treads 5596 | 5 704 615 917 516 26 456 953 446 487 386 85 Legs . | . . . . . . . . . . . . Wheels 2 | . 2 . . . . . . . . . . Hover . | . . . . . . . . . . . . Flight . | . . . . . . . . . . . . Fastest Speed 110 | 160 110 160 160 160 240 160 160 240 240 243 243 Average Speed 193 | 160 159 160 160 160 240 226 202 240 240 243 243 Slowest Speed 243 | 160 240 160 160 160 240 240 240 240 243 243 243 Overloaded Moves . | . . . . . . . . . . . . Propulsion Burnouts . | . . . . . . . . . . . . Robots Hopped . | . . . . . . . . . . . . Cave-ins Triggered . | . . . . . . . . . . . . Exploration Rate (%) 56 | 2 94 99 81 97 4 55 80 54 48 58 9 Regions Visited 11 Branch Regions 2 Pre-discovered Areas 3 | . 1 1 . 1 . . . . . . . Known Exits Taken 4 | . . . 1 . 1 . 1 . 1 . . Unknown Exits Taken 4 | 1 1 1 . 1 . . . . . . . Scrap Searched 2 | . . 1 . 1 . . . . . . . Spaces Dug 37 | . . . . . . 2 22 4 5 3 1 Terrain Destroyed 241 | . . . 9 21 . 18 140 24 5 23 1 Melee 11 | . . . . . . . 1 4 5 . 1 Projectile 7 | . . . 2 2 . . 3 . . . . AOE 223 | . . . 7 19 . 18 136 20 . 23 . Terrain Rammed . | . . . . . . . . . . . . Walls Destroyed . | . . . . . . . . . . . . Machines Disabled . | . . . . . . . . . . . . Actions | -11 -10 -10 -9 -9 -8 -8 -8 -8 -8 -8 -8 --------- Run | Scr Mat Min Mat Min Mat Gar Mat Gar Mat Gar Mat Total 7391 | 6 908 668 1196 526 30 660 1347 578 704 628 140 Wait 961 | . 102 39 118 . . 100 151 62 136 215 38 Move 5588 | 4 705 614 916 515 26 455 952 445 486 385 85 Hop . | . . . . . . . . . . . . Pick Up 69 | . 16 . 16 2 . 6 20 5 4 . . Fast Attach 31 | . 9 . 3 . . 3 9 5 2 . . Attach 30 | . 1 . 10 . 2 3 11 1 1 . 1 Detach 10 | . 2 . 2 . . 1 2 2 1 . . Swap 83 | 2 4 . 5 4 1 14 28 8 9 6 2 Drop 52 | . 7 . 7 . . 2 18 12 6 . . Fire 491 | . 49 10 109 4 1 65 141 32 47 20 13 Melee 20 | . . . . . . . 8 6 5 . 1 Ram . | . . . . . . . . . . . . Kick . | . . . . . . . . . . . . Crush 44 | . 13 5 10 1 . 3 5 . 7 . . Escape Stasis 10 | . . . . . . 8 . . . 2 . Rewire . | . . . . . . . . . . . . Trap 2 | . . . . . . . 2 . . . . Miscellaneous . | . . . . . . . . . . . . Route ------- -11/Scrapyard -10/Materials (discovered 4 exits: *Mat x3 / [*Min]) -10/Mines (discovered 3 exits: *Mat x2 / [*Exi]) -9/Materials (discovered 5 exits: *Mat x3 / *Min x2) -9/Mines (discovered 3 exits: *Mat x2 / [*Zio]) -8/Materials (discovered 3 exits: Fac x2 / Gar) -8/Garrison (discovered 2 exits: *Mat x2) -8/Materials (discovered 4 exits: *Fac x3 / Gar) -8/Garrison (discovered 2 exits: *Mat x2) -8/Materials (discovered 2 exits: *Fac / Gar) -8/Garrison (discovered 3 exits: *Mat x3) -8/Materials History --------- Turn | Location | Event 4 | -11/Scrapyard | Discovered new exit (range 3) 11 | -11/Scrapyard | Entered Materials 305 | -10/Materials | Build established: Mutant 305 | -10/Materials | Discovered new exit (range 6) 721 | -10/Materials | Repaired Lgt. Treads 748 | -10/Materials | Repaired Lgt. Treads 921 | -10/Materials | Discovered new exit (range 13) 1099 | -10/Materials | Central database locked down 1203 | -10/Materials | Discovered new exit (range 12) 1418 | -10/Materials | Discovered new exit (range 14) 1450 | -10/Materials | Entered Mines 1456 | -10/Mines | Met a Derelict bent on vengeance 1500 | -10/Mines | Learned location of Zion (-7) 1687 | -10/Mines | Discovered new exit (range 16) 1716 | -10/Mines | Discovered new exit (range 5) 2071 | -10/Mines | Deemed a non-threat by the Exiles lab entrance 2072 | -10/Mines | Discovered new exit (range 5) 2246 | -10/Mines | Received a Mining Laser from a helpful Derelict 2510 | -10/Mines | Entered Materials 2510 | -9/Materials | Accompanied by 1 ally 2510 | -9/Materials | Evolved 2 slots: Propulsion x1, Utility x1 3133 | -9/Materials | Discovered new exit (range 12) 3327 | -9/Materials | Discovered new exit (range 11) 3558 | -9/Materials | Repaired Lgt. Treads 3618 | -9/Materials | Identified exit to Mines 3661 | -9/Materials | Discovered new exit (range 3) 4143 | -9/Materials | Discovered new exit (range 16) 4474 | -9/Materials | Entered Mines 4751 | -9/Mines | A Derelict revealed a hidden shortcut to a safe place 4805 | -9/Mines | Assembled infested the area 4810 | -9/Mines | Assisted by a Guerilla fighting off Assembled 4978 | -9/Mines | Learned 8 Materials zone layouts 4997 | -9/Mines | Assisted by bots powering up and referring to "LRC-V3" 5196 | -9/Mines | Discovered new exit (range 12) 5283 | -9/Mines | Discovered new exit (range 7) 5289 | -9/Mines | Learned location of Storage (-7) 5318 | -9/Mines | Entered Materials 5318 | -8/Materials | Accompanied by 3 allies 5318 | -8/Materials | Evolved 2 slots: Utility x2 5319 | -8/Materials | Identified exit to Factory 5383 | -8/Materials | Identified exit to Garrison 5386 | -8/Materials | Entered Garrison 5386 | -8/Garrison | Accompanied by 4 allies 5452 | -8/Garrison | Triggered checkpoint 5580 | -8/Garrison | Triggered checkpoint 5602 | -8/Garrison | Triggered checkpoint 5606 | -8/Garrison | Triggered checkpoint 5650 | -8/Garrison | Build established: Scavenger-Mutant 5658 | -8/Garrison | Destroyed 17 combat bots 5750 | -8/Garrison | Triggered checkpoint 5889 | -8/Garrison | Discovered new exit (range 10) 6390 | -8/Garrison | Discovered new exit (range 13) 6520 | -8/Garrison | Triggered checkpoint 6636 | -8/Garrison | Rescued a captive Derelict 6728 | -8/Garrison | Entered Materials 6728 | -8/Materials | Accompanied by 1 ally 6924 | -8/Materials | Lost 5 parts (1p2n2u) 7262 | -8/Materials | Discovered exit to Factory (range 10) 7528 | -8/Materials | First assault squad dispatched 7799 | -8/Materials | Discovered exit to Factory (range 3) 7990 | -8/Materials | Core integrity fell below 50% 8043 | -8/Materials | Destroyed 9 combat bots 8330 | -8/Materials | Build established: Mutant 8588 | -8/Materials | Central database locked down 8853 | -8/Materials | Garrison activated, responded to threat 9187 | -8/Materials | Identified exit to Garrison 9213 | -8/Materials | Discovered exit to Factory (range 14) 9324 | -8/Materials | Garrison activated, responded to threat 9329 | -8/Materials | Entered Garrison 9329 | -8/Garrison | Accompanied by 2 allies 9809 | -8/Garrison | Destroyed 9 combat bots 9820 | -8/Garrison | Triggered checkpoint 9886 | -8/Garrison | Triggered checkpoint 9994 | -8/Garrison | Discovered new exit (range 8) 10324 | -8/Garrison | Discovered new exit (range 14) 10343 | -8/Garrison | Core integrity fell below 20% 10488 | -8/Garrison | Triggered checkpoint 10604 | -8/Garrison | Entered Materials 11334 | -8/Materials | Repaired Hrd. Heavy Armor Plating 11795 | -8/Materials | Discovered exit to Factory (range 16) 12045 | -8/Materials | Garrison activated, responded to threat 12118 | -8/Materials | Identified exit to Garrison 12126 | -8/Materials | Entered Garrison 12198 | -8/Garrison | Triggered checkpoint 12353 | -8/Garrison | Discovered new exit (range 13) 12468 | -8/Garrison | Triggered checkpoint 12650 | -8/Garrison | Triggered checkpoint 12709 | -8/Garrison | Triggered checkpoint 12716 | -8/Garrison | Triggered checkpoint 12750 | -8/Garrison | Destroyed 7 combat bots 12861 | -8/Garrison | Discovered new exit (range 11) 12876 | -8/Garrison | Learned Materials security intel 13132 | -8/Garrison | Discovered new exit (range 10) 13344 | -8/Garrison | Entered Materials 13639 | -8/Materials | Destroyed by G-47 Trooper with Particle Gun Last Messages --------------- 13511_ ALERT: Hostiles spotted, dispatching reinforcements to Terminal M008. 13527_ G-47 Trooper destroyed. 13527_ K-01 Serf collects debris. 13533_ G-50 Soldier destroyed. 13535_ K-01 Serf collects debris. 13573_ W-25 Informer sends out distress signal. 13583_ S-10 Pest destroyed. 13593_ Critical hit (Burn: +37). 13597_ G-50 Soldier destroyed. 13600_ G-47 Trooper destroyed. 13607_ K-01 Serf collects debris. 13608_ Acquired 9 matter. 13610_ K-01 Serf collects debris. 13611_ S-10 Pest destroyed. 13613_ K-01 Serf collects debris. 13626_ Lgt. Treads destroyed. 13627_ G-47 Trooper destroyed. 13629_ K-01 Serf collects debris. 13639_ Critical hit (Burn: +37). Map ----- +----------------------------------------------------+ | ??????????# #????????????????????????????? | | ??????????# #????????????????????????????? | | ??????????# ###+####?????????????????????? | | ??????????# #?????????????????????? | | ??????????# #?????????????????????? | | ??????????# #?????????????????????? | | ???????#####+##### #?????????????????????? | | ???????# # #?????????????????????? | | ???????# "S # #?????????????????????? | | ???????# """ """ # ###+??????????????????? | | ???????# "" """ # ??????????????? | | ???????# """ # [ ??????????????? | | ???????# """ # !%= ??????????????? | | ???????# """ # =%# #??????????????? | | ???????# # =%# #??????????????? | | ###########+###### [=# #??????????????? | | # # ###### ## ##??????????????? | | # """"""" # %= ########??????????????? | | # """"""" + !% #??????#??????????????? | | # """"""" # #??????#??????????????? | | # """"""" # ##### ##??????#??????????????? | | # """"""" # #???#w#??????????????????????? | | # + #???# #??????????????????????? | | # ###+#####=#??????????????????????? | | ##########" ## #??????????????????????? | | ?????????## "T" ##@#??????????????????????? | | ??????????# ##*#??????????????????????? | | ??????????# ##/#########??????????????? | | ??????????# ##gT #??????????????? | | ??????????#########*% #??????????????? | | ??????????????????#[= #??????????????? | | ??????????????????# """ """ #??????????????? | | ???????????######## """ """ #??????????????? | | ???????????# # """ """ #??????????????? | | ???######### # #??????????????? | | ???# ## # #??????????????? | | ???#""" ## ##+########??????????????? | | ???#""" # ??????????????? | | ???#""" # ??????????????? | | ???# + ##+#########+###??????????????? | | ???# # # ### ??????????????? | | ???????????????????????????????????????????? | | ???????????????????????????????????????????? | | ???????????????????????????????????????????? | | ???????????????????????????????????????????? | | ???????????????????????????????????????????? | | ???????????????????????????????????????????? | | ???????????????????????????????????????????? | | ???????????????????????????????????????????? | | ???????????????????????????????????????????? | +----------------------------------------------------+ Best States ------------- Heat Dissipation 67 Energy Generation 14 Energy Capacity 280 Matter Stores 300 Matter Capacity 300 Sight Range 20 Terrain Scan Density 10 Armor Coverage 600 Resistance: KI 30 Weapon Shielding 66 Evasion (%) 40 Targeting Accuracy 12 Melee Accuracy 5 Target Analysis 5 Recoil Reduction 3 Trap Extractor Capacity 4 Item Schematics ----------------- Huge Storage Unit | -10/Materials | Hacked Imp. Treads | -9/Materials | Scanalyzed Robot Schematics ------------------ None Fabricated ------------ Nothing Alien Tech Used ----------------- None Achievements -------------- None Challenges ------------ None Game ------ Seed PropulsionRemoteKatana Manual? 0 Play Time 00:49:38 Cumulative 1238.4 hours Start 2022.10.25 @ 23:34:05 End 2022.10.26 @ 00:23:21 Sessions 1 Manual Loads 0 Difficulty Rogue Special Mode None Game No. 861 Rogue 857 Adventurer 4 Explorer 0 Win Type - Total 135 Types 102/9/8/5/2/1/1/4/3 Lore% 95 Gallery% 98 Achievement% 98 Wizard Run 0 Options --------- ASCII 0 Keyboard 1 Movement Vi Keybinds 0 Fullscreen 0 Font 20/X11 Map View 76x50 Tactical HUD 1 Map Filters NONE Filters NONE Steam 1 RUN: 306d3bf7-a203-43bc-b1a9-304f66d9ce65